[Event "8th Montevideo Open 2025"]
[Site "Montevideo"]
[Date "2025.02.07"]
[Round "7.12"]
[White "Silva, Juliana Figueira The"]
[Black "Meza, Anahi"]
[Result "1/2-1/2"]
[Annotator "TA"]
[ECO "A87"]
[WhiteElo "1850"]
[BlackElo "2038"]
[PlyCount "244"]
[EventDate "2025.02.01"]
[EventType "swiss"]
[EventCountry "URU"]
[SourceTitle "playchess.com"]
[Source "ChessBase"]
[SourceQuality "1"]
[TimeControl "5400+30"]

{[%evp 12,244,41,1,31,26,34,25,23,0,17,20,40,42,52,27,24,18,42,30,61,56,77,75,72,57,54,53,100,0,0,0,0,-6,0,0,0,0,0,0,0,0,8,0,0,0,0,0,0,0,0,0,0,0,8,15,16,9,13,14,9,16,24,29,207,212,235,108,254,0,108,37,38,44,85,85,85,32,32,30,38,0,40,41,47,58,110,126,116,106,118,118,117,113,116,117,95,70,79,90,200,194,200,194,181,180,198,198,329,243,258,256,254,257,291,215,212,0,308,306,387,387,384,0,291,195,202,201,189,66,66,66,66,66,66,66,66,0,66,66,66,66,66,66,66,66,66,66,66,66,66,66,66,66,66,66,66,59,66,64,64,59,59,59,59,59,59,59,59,59,64,59,64,64,59,59,52,56,61,59,29980,59,59,59,59,59,59,59,59,59,24,8,8,8,8,8,8,0,8,0,8,0,0,0,0,0,0,0,0,0,0,0,0,0,0,0,0,0,0,0,0,0,8,0,0,0,0,0,0,0,0,0,0,0,29999]} 1. d4 {[%emt 0:00:02]} f5 {[%emt 1:31:00]} 2. g3 {[%emt 0:02:02]} Nf6 {[%emt 0:00:30]} 3. Bg2 {[%emt 0:00:57]} g6 {[%emt 0:00:30]} 4. c4 {[%emt 0:01:14]} Bg7 {[%emt 0:00:00]} 5. Nf3 {[%emt 0:02:44]} O-O {[%emt 0:00:00]} 6. O-O {[%emt 0:00:55]} d6 {[%emt 0:00:00]} 7. d5 {[%emt 0:05:15][%cal Bd4d5,Bd5e6][%mdl 32]} e5 {[%emt 0:00:00] A87: Dutch Defence: Leningrad System: 5 Nf3.} 8. dxe6 {[%emt 0:03:47]} Ne4 $146 {[%emt 0:00:00][%cal Ob8c6] Inhibits Nc3.} (8... Bxe6 9. Nd4 Bxc4 10. Bxb7 Nbd7 11. Qc2 Nb6 12. Bxa8 Qxa8 13. Nc3 c5 14. Ndb5 Qc6 15. Na3 {0-1 Djordjevic,V (2385)-Nepomniachtchi,I (2779) Titled Tuesday intern op 06th Jun Early blitz 2023 (8)}) 9. Nd4 {[%emt 0:08:08]} Na6 {[%emt 0:00:00] White has an edge.} 10. e3 {[%emt 0:07:43]} c6 {[%emt 0:00:00]} 11. Nd2 {[%emt 0:06:17][%cal Bb1d2,Bd2f3,Bf3g5,Bg5h3,Bh3f4][%mdl 32]} Ng5 {[%emt 0:00:00]} 12. Rb1 {[%emt 0:10:09]} Nxe6 {[%emt 0:00:00]} 13. Nxe6 {[%emt 0:03:44]} Bxe6 {[%emt 0:00:00]} 14. b4 {[%emt 0:01:55]} Qc7 {[%emt 0:00:00]} 15. Qc2 {[%emt 0:03:15]} Rad8 {[%emt 0:00:00]} 16. Nf3 {[%emt 0:02:34]} Rfe8 {[%emt 0:00:00]} 17. Ng5 {[%emt 0:06:23]} Bc8 {[%emt 0:00:00]} 18. h4 {[%emt 0:32:26]} h6 {[%emt 0:07:30]} 19. Nh3 {[%emt 0:00:00]} Be6 {[%emt 0:00:30]} (19... Be5 $14) 20. a3 {[%emt 0:01:00]} (20. Nf4 $16) 20... Qf7 $11 {[%emt 0:00:30]} 21. b5 {[%emt 0:00:00]} cxb5 {[%emt 0:00:00]} 22. cxb5 {[%emt 0:00:00]} Nc5 {[%emt 0:00:00][%cal Of5f4]} 23. Nf4 {[%emt 0:00:00]} Bc4 {[%emt 0:00:00]} 24. Qxc4 {[%emt 0:00:00]} Qxc4 {[%emt 0:00:00]} 25. Bd5+ {[%emt 0:00:00]} Qxd5 $1 {[%emt 0:00:00]} 26. Nxd5 {[%emt 0:00:00]} Rc8 {[%emt 0:00:00]} 27. Bb2 {[%emt 0:00:00]} Bxb2 {[%emt 0:00:00]} 28. Rxb2 {[%emt 0:00:00]} Kf7 {[%emt 0:00:00] Against Nf6} 29. Rc2 {[%emt 0:00:00]} Nd3 {[%emt 0:00:00]} 30. Rd2 {[%emt 0:00:00]} Ne5 {[%emt 0:00:00]} 31. Kg2 {[%emt 0:00:00] Prevents Nf3.} Nc4 {[%emt 0:00:00][%csl LRa3,LRd2]} 32. Rd3 {[%emt 0:00:00]} Rc5 {[%emt 0:00:00][%cal Oe8e4]} 33. a4 {[%emt 0:00:17]} Nb2 {[%emt 0:00:00][%csl LRa4,LRd3]} 34. Rd2 {[%emt 0:02:57]} (34. Rd4 Re4 35. Rxe4 fxe4 $15) 34... Nxa4 {[%emt 0:00:00][%cal Oa4b2]} 35. Ra1 {[%emt 0:00:21]} Re4 {[%emt 0:00:00]} 36. Nf4 $1 {[%emt 0:02:03]} Rxb5 {[%emt 0:01:51]} (36... g5 37. hxg5 hxg5 38. Nh3 $16) 37. Rxd6 {[%emt 0:00:02]} Rb6 $2 {[%emt 0:02:19]} (37... Nb6 $11 {and Black stays safe.}) 38. Rd7+ $18 {[%emt 0:00:27][%mdl 1024] White has strong compensation.} Kf8 {[%emt 0:01:57]} 39. Rh7 {[%emt 0:00:42]} (39. Rc1 $18 Rc6 40. Rxc6 bxc6 41. Nxg6+ (41. Rxa7 g5 $18) 41... Ke8 42. Rxa7) 39... Kg8 {[%emt 0:01:48]} (39... Nc5 $16) 40. Rd7 $2 {[%emt 0:00:18]} (40. Rxh6 $2 Kg7 41. Rxg6+ (41. f3 $2 Reb4 $19) 41... Rxg6 $19) ({White must play} 40. Rc7 $1 $18 {Black must now prevent Rd1.} Rd6 41. Rxb7) 40... Nc5 {[%emt 0:00:47]} (40... Kf8 $1 $11) 41. Rd8+ {[%emt 0:00:55]} (41. Rd5 $16 Rc4 (41... Ra4 $2 42. Rc1 $18) 42. Rxa7) 41... Kf7 $14 {[%emt 0:00:02]} 42. Rxa7 {[%emt 0:01:09]} Ra6 {[%emt 0:01:14]} 43. Rxa6 {[%emt 0:00:43]} bxa6 $16 {[%emt 0:00:01][%mdl 4096] Endgame KRN-KRN} 44. Rd6 {[%emt 0:00:59]} (44. Rd5 $1 $16 {[%cal Rd5c5]} Ne6 45. Nd3) 44... a5 {[%emt 0:01:01]} 45. Rc6 {[%emt 0:00:52]} (45. Rxg6 $2 {too greedy.} Rxf4 46. Rxh6 Rb4 $19) 45... Nb3 {[%emt 0:00:51]} 46. Ra6 {[%emt 0:00:34]} ({Worse is} 46. Rxg6 Rxf4 47. Rxh6 Rc4 $19) 46... g5 {[%emt 0:00:22]} 47. hxg5 {[%emt 0:00:10]} hxg5 {[%emt 0:00:01]} 48. Nh3 {[%emt 0:00:33]} Rg4 {[%emt 0:00:46]} (48... Ke7 $14) 49. f3 {[%emt 0:00:42]} Rc4 {[%emt 0:00:14]} 50. Nxg5+ {[%emt 0:00:03]} Ke7 {[%emt 0:00:11]} 51. e4 {[%emt 0:00:25]} fxe4 {[%emt 0:02:05]} 52. Nxe4 {[%emt 0:00:16]} a4 {[%emt 0:00:00]} 53. Kf2 {[%emt 0:00:20]} Nd4 {[%emt 0:00:00]} 54. Ke3 {[%emt 0:00:29]} Rb4 {[%emt 0:00:00]} 55. Ra7+ {[%emt 0:00:19]} Ke6 {[%emt 0:00:12] [#]} (55... Ke8 $16) 56. Rxa4 $1 $18 {[%emt 0:01:05]} Nf5+ {[%emt 0:00:18]} 57. Kf2 {[%emt 0:00:15]} Rb2+ {[%emt 0:00:14]} 58. Ke1 {[%emt 0:00:29]} Ne3 {[%emt 0:00:54]} 59. Nd2 {[%emt 0:01:13]} Kf5 {[%emt 0:00:49]} (59... Nd5 $142 60. Ra6+ Ke7) 60. Ke2 {[%emt 0:00:37]} Nd5 {[%emt 0:00:36]} 61. Ra5 {[%emt 0:00:17]} Ke6 {[%emt 0:00:08]} 62. Kd3 {[%emt 0:00:20]} Rb7 {[%emt 0:00:15]} 63. Ra6+ {[%emt 0:00:51]} Kf5 {[%emt 0:00:19] and ...Nb4+ should not be overlooked} 64. Ra5 {[%emt 0:00:36]} (64. Kd4 $142 Nf6 65. Rd6) 64... Ke6 $1 {[%emt 0:00:06]} 65. Ne4 {[%emt 0:00:28]} Rb3+ {[%emt 0:00:21]} 66. Kc4 {[%emt 0:00:20]} Rb4+ {[%emt 0:01:04]} 67. Kd3 {[%emt 0:00:40]} Rb3+ {[%emt 0:00:20]} 68. Ke2 {[%emt 0:00:11]} Rb2+ {[%emt 0:00:22] [#]} 69. Nd2 $1 {[%emt 0:00:15]} Rb4 {[%emt 0:01:30]} 70. f4 {[%emt 0:00:38]} (70. Ra8 $18) 70... Nxf4+ $1 $14 {[%emt 0:00:21]} 71. gxf4 {[%emt 0:00:46]} Rxf4 {[%emt 0:00:01] KRN-KR} 72. Ke3 {[%emt 0:00:07]} Rb4 {[%emt 0:00:39]} 73. Ne4 {[%emt 0:00:09]} Rb1 {[%emt 0:01:27]} 74. Nd2 {[%emt 0:00:26]} Rb4 $1 {[%emt 0:00:20]} 75. Rh5 {[%emt 0:00:21]} Ra4 {[%emt 0:00:37]} 76. Ne4 {[%emt 0:00:33] Intending Nc5+ and mate.} Ra1 {[%emt 0:00:35]} 77. Nc3 {[%emt 0:00:52]} Rg1 {[%emt 0:00:31]} 78. Kd4 {[%emt 0:00:21]} Ra1 {[%emt 0:00:55]} 79. Rb5 {[%emt 0:00:30]} Rh1 {[%emt 0:00:19]} 80. Re5+ {[%emt 0:00:22]} Kd6 {[%emt 0:00:33]} 81. Ne4+ {[%emt 0:00:14]} Kc6 {[%emt 0:00:11]} 82. Rc5+ {[%emt 0:00:15]} Kd7 {[%emt 0:00:09]} 83. Ra5 {[%emt 0:00:57]} Rd1+ {[%emt 0:00:50]} 84. Ke5 {[%emt 0:00:10]} Rh1 {[%emt 0:00:09]} 85. Ra7+ {[%emt 0:00:43]} Kc6 {[%emt 0:00:09]} 86. Ra6+ {[%emt 0:00:15]} Kb5 {[%emt 0:00:29]} 87. Ra8 {[%emt 0:00:41]} Kc4 {[%emt 0:00:26]} 88. Rc8+ {[%emt 0:00:10]} Kb4 {[%emt 0:00:26]} 89. Nf2 {[%emt 0:00:35]} Rh5+ {[%emt 0:00:14]} 90. Kd4 {[%emt 0:00:11]} Rh7 {[%emt 0:00:25]} 91. Rb8+ {[%emt 0:00:05]} Ka5 {[%emt 0:00:22]} 92. Ne4 {[%emt 0:00:28]} Rh4 {[%emt 0:01:43]} 93. Kd5 {[%emt 0:01:33]} Rh5+ {[%emt 0:00:14]} 94. Kc6 {[%emt 0:00:40]} Rh1 {[%emt 0:01:08]} 95. Nc3 {[%emt 0:01:10]} Rc1 $2 {[%emt 0:00:45][%mdl 8192]} (95... Rh3 $14) 96. Rb3 $2 {[%emt 0:00:04]} (96. Rb5+ {mates} Ka6 97. Rb3 Ka7 98. Kc7 Ra1 99. Rb7+ Ka8 100. Rb8+ Ka7 101. Nb5+ Ka6 102. Ra8+ Kxb5 103. Rxa1) 96... Rh1 {[%emt 0:00:24]} 97. Kc5 {[%emt 0:01:07][%cal Rb3a3]} Rh5+ {[%emt 0:00:14]} 98. Nd5 {[%emt 0:00:06]} Ka4 {[%emt 0:00:23]} 99. Rb8 {[%emt 0:00:36]} Ka3 {[%emt 0:00:21]} 100. Kc4 {[%emt 0:00:32]} Rh4+ {[%emt 0:00:13]} 101. Kd3 {[%emt 0:00:13]} Ka4 {[%emt 0:00:58] The position is equal.} 102. Nc3+ {[%emt 0:01:01]} Ka5 {[%emt 0:00:21]} 103. Ne4 {[%emt 0:00:45]} Rh3+ {[%emt 0:00:45]} 104. Kd4 {[%emt 0:00:26]} Rh4 {[%emt 0:00:13]} 105. Rb1 {[%emt 0:00:27]} Ka4 {[%emt 0:00:28]} 106. Kd3 {[%emt 0:00:38]} Ka5 {[%emt 0:00:15]} 107. Nd2 {[%emt 0:00:31]} Rh3+ {[%emt 0:00:19]} 108. Ke4 {[%emt 0:00:32]} Rh4+ {[%emt 0:00:16]} 109. Kd5 {[%emt 0:00:15]} Rh5+ {[%emt 0:00:41]} 110. Kd4 {[%emt 0:00:10]} Rh4+ {[%emt 0:00:16]} 111. Ne4 {[%emt 0:00:04]} Ka4 {[%emt 0:01:04]} 112. Ke5 {[%emt 0:01:11]} Rh5+ {[%emt 0:00:16]} 113. Kd6 {[%emt 0:00:17]} Ka5 {[%emt 0:00:40]} 114. Nc3 {[%emt 0:00:21]} Rh3 {[%emt 0:01:04]} 115. Rb3 {[%emt 0:00:14]} Rh5 {[%emt 0:00:40]} 116. Kc6 {[%emt 0:00:20]} Rg5 {[%emt 0:00:35]} 117. Nd5 {[%emt 0:00:37]} Ka4 {[%emt 0:00:21] Prevents Ra3+.} 118. Rb8 {[%emt 0:00:13]} Rg1 {[%emt 0:00:35]} 119. Nc3+ {[%emt 0:00:19]} Ka3 {[%emt 0:00:20]} 120. Kc5 {[%emt 0:00:18]} Rg5+ {[%emt 0:00:16]} 121. Nd5 {[%emt 0:00:14]} Ka4 {[%emt 0:00:32]} 122. Kc4 {[%emt 0:00:54][%cal Rb8a8]} Ka5 $2 {[%emt 0:01:34][%mdl 40960] Weighted Error Value: White=0.18 (very precise) /Black=0.25 (precise)  An unexpected result.  Loses game:     	---       	Black=3      Missed win:     	White=2     	---        Mistake:       	White=6     	Black=6      Inaccurate:     	White=2     	Black=3      OK:         	White=45    	Black=40     Best:        	White=5     	Black=7      Strong:       	White=1     	Black=4      Brilliant:      	White=1     	---} (122... Rg1 $11) 1/2-1/2

[Event "8th Montevideo Open 2025"]
[Site "Montevideo"]
[Date "2025.02.07"]
[Round "7.13"]
[White "Cayetano, Juan"]
[Black "Curi, Gabriel"]
[Result "1/2-1/2"]
[Annotator "TA"]
[ECO "C01"]
[WhiteElo "1940"]
[BlackElo "2115"]
[PlyCount "112"]
[EventDate "2025.02.01"]
[EventType "swiss"]
[EventCountry "URU"]
[SourceTitle "playchess.com"]
[Source "ChessBase"]
[SourceQuality "1"]
[TimeControl "5400+30"]

{[%evp 13,112,22,42,16,32,0,4,0,10,11,14,0,29,17,23,3,18,0,-7,0,12,-22,-2,0,-6,-8,-2,0,0,-15,-26,-55,-9,-11,-16,-18,-18,-24,-25,-31,-10,-23,-17,-22,0,0,0,-12,-6,-10,0,0,0,0,0,0,0,-2,-3,-16,-18,-28,-30,-43,0,0,0,-18,0,-18,0,-6,0,0,0,0,0,0,22,-17,-16,-29,0,0,0,0,0,-161,5,-3,-3,-3,0,0,0,0,0,0,0,0,0]} 1. e4 {[%emt 0:00:19]} e6 {[%emt 0:00:06]} 2. d4 {[%emt 0:00:06]} d5 {[%emt 0:00:04]} 3. exd5 {[%emt 0:00:05]} exd5 {[%emt 0:00:05]} 4. Bd3 {[%emt 0:00:08]} Nc6 {[%emt 0:00:06]} 5. c3 {[%emt 0:00:21]} Bd6 {[%emt 0:00:08]} 6. Nf3 {[%emt 0:00:42]} Bg4 {[%emt 1:33:01]} 7. O-O {[%emt 0:03:28] 7.h3 might become the main line.} Nge7 8. a4 {[%emt 0:06:46] C01: French: Exchange Variation.} Qd7 9. a5 {[%emt 1:23:05]} a6 {[%emt 0:01:30]} 10. Re1 {[%emt 0:00:30]} f6 $146 {[%emt 0:00:30]} (10... O-O 11. Nbd2 Ng6 12. Nf1 Rae8 13. Ne3 Nf4 14. Nxg4 Qxg4 15. Bxf4 Qxf4 16. Qb3 Ne7 {1-0 Snigurov,M (2244)-Dehtiarov,R (2346) UKR-ch Rapid 92nd 2024 (5)}) 11. Nbd2 {[%emt 0:00:00][%cal Bb1d2,Bd2f1,Bf1e3][%mdl 32]} O-O 12. Nf1 {[%emt 0:00:00]} Rfe8 13. Ne3 {[%emt 0:01:30] [#] aiming for Nxg4.} Bh5 {[%emt 0:01:30]} 14. b3 {[%emt 0:00:30]} Bg6 {[%emt 0:00:30]} 15. Nh4 {[%emt 0:00:30]} Bxd3 {[%emt 0:00:00]} 16. Qxd3 {[%emt 0:00:00]} Bf4 17. Bd2 {[%emt 0:00:00]} Bxe3 (17... g5 $5 18. Nf3 $8 Ng6 $11) 18. Rxe3 {[%emt 0:00:00]} g5 19. Nf3 {[%emt 0:00:00]} Nf5 20. Rxe8+ {[%emt 0:00:00]} Rxe8 21. g3 {[%emt 0:03:00]} Nd6 {[%emt 0:03:30] Not much happening anymore} 22. Kg2 {[%emt 0:00:30]} Qf5 {[%emt 0:00:30]} (22... Ne4 $15 23. Ne1 Ne7) 23. Qxf5 $11 {[%emt 0:00:30]} Nxf5 {[%emt 0:00:30]} 24. Kf1 {[%emt 0:00:30]} Nd6 {[%emt 0:00:30]} 25. Ng1 {[%emt 0:00:00]} Kf7 {[%emt 0:00:00]} 26. h3 Kg6 {[%emt 0:00:00]} 27. f3 h5 {[%emt 0:00:00][%cal Og5g4]} 28. Ne2 {[%emt 0:00:00]} Nf5 {[%emt 0:00:00]} 29. Kf2 {[%emt 0:00:00]} Re7 {[%emt 0:00:00]} 30. Ra2 {[%emt 0:00:00]} Rh7 {[%emt 0:00:00]} 31. Ra1 {[%emt 0:00:00]} h4 {[%emt 0:00:00]} 32. g4 {[%emt 0:00:00]} Nd6 {[%emt 0:00:00]} 33. Be3 {[%emt 0:00:00]} Re7 {[%emt 0:00:00]} 34. Bd2 {[%emt 0:00:00]} Re8 {[%emt 0:00:00]} 35. Be3 {[%emt 0:00:00]} Ra8 {[%emt 0:00:00]} 36. Ra4 {[%emt 0:00:00]} b6 {[%emt 0:00:00]} 37. axb6 {[%emt 0:00:00]} cxb6 {[%emt 0:00:00]} 38. c4 {[%emt 0:00:00]} b5 {[%emt 0:00:00]} 39. cxb5 {[%emt 0:00:00]} Nxb5 {[%emt 0:00:00]} 40. Ke1 {[%emt 0:00:00]} Ra7 {[%emt 0:00:00]} 41. Bd2 {[%emt 0:00:00]} Kf7 {[%emt 0:00:00]} 42. Kf2 {[%emt 0:00:00]} Nc7 {[%emt 0:00:00]} 43. Ke3 {[%emt 0:00:00]} Rb7 {[%emt 0:00:00]} 44. b4 {[%emt 0:00:00]} Na7 {[%emt 0:00:00]} 45. Kd3 {[%emt 0:00:00]} Nab5 {[%emt 0:00:00]} 46. Nc1 {[%emt 0:00:00]} Nd6 {[%emt 0:00:00]} 47. Nb3 {[%emt 0:00:00]} Nc4 {[%emt 0:00:00] [#]} 48. Na5 $1 {[%emt 0:00:00]} Nxa5 {[%emt 0:00:00]} 49. Rxa5 {[%emt 0:00:00][%mdl 4096] Endgame KRB-KRN} Rb5 {[%emt 0:00:00]} 50. f4 $2 {[%emt 0:00:00]} (50. Ra1 $11 {and White stays safe.}) 50... Kg6 $2 {[%emt 0:00:00]} (50... Rxa5 $19 51. bxa5 f5 52. fxg5 (52. gxf5 $2 {perishes.} g4 $19) 52... fxg4 53. hxg4 h3) 51. Rxb5 {[%emt 0:00:00] The position is equal.} axb5 {[%emt 0:00:00]} 52. fxg5 {[%emt 0:00:00] KB-KN. White is a pawn up.} f5 {[%emt 0:00:00] aiming for ...fxg4.} 53. gxf5+ {[%emt 0:00:00]} Kxf5 {[%emt 0:00:00]} 54. Be3 {[%emt 0:00:00]} Ne6 {[%emt 0:00:00]} 55. Ke2 {[%emt 0:00:00]} Nxg5 {[%emt 0:00:00]} 56. Bxg5 {[%emt 0:00:00]} Kxg5 {[%emt 0:00:00] Weighted Error Value: White=0.14 (very precise) /Black=0.15 (very precise)   Loses game:     	White=1     	---        Missed win:     	---       	Black=1      Mistake:       	---       	Black=1      Inaccurate:     	White=4     	Black=3      OK:         	White=15    	Black=13     Best:        	White=2     	Black=1      Strong:       	White=1     	---} 1/2-1/2

[Event "8th Montevideo Open 2025"]
[Site "Montevideo"]
[Date "2025.02.07"]
[Round "7.14"]
[White "Estrada Nieto, Julian"]
[Black "Esteve, Federico"]
[Result "1/2-1/2"]
[Annotator "TA"]
[ECO "B13"]
[WhiteElo "2195"]
[BlackElo "1946"]
[PlyCount "100"]
[EventDate "2025.02.01"]
[EventType "swiss"]
[EventCountry "URU"]
[SourceTitle "playchess.com"]
[Source "ChessBase"]
[SourceQuality "1"]
[TimeControl "5400+30"]

{[%evp 11,100,24,24,-13,11,-9,36,0,21,14,28,18,15,0,0,0,0,-5,-2,-5,11,8,14,-5,-12,-33,-12,-37,0,-58,-57,-47,-40,-29,-31,-31,-23,-45,-25,-55,-36,-51,-39,-47,-20,-72,-11,-39,0,-56,-60,-42,0,0,0,0,0,0,0,0,0,0,0,0,0,0,0,0,0,0,130,0,0,0,0,0,0,0,0,0,0,0,0,0,0,0,0,0,0,0,0]} 1. e4 c6 2. d4 d5 3. exd5 cxd5 4. Bd3 Nf6 5. c3 Bg4 6. Qb3 Qc7 7. Na3 {B13: Caro-Kann: Exchange Variation and Panov-Botvinnik Attack.} a6 {Prevents Nb5} 8. h3 Bh5 9. Ne2 $146 {White is slightly better.} (9. Bf4 $5 Qc6 (9... Qxf4 10. Qxb7 e6 11. Qc8+ Ke7 12. g3 $14) 10. Ne2 $11) (9. Bf4 Qc8 10. Ne2 e6 11. O-O Nc6 12. Nc2 Be7 13. Ne3 O-O 14. Ng3 Bg6 15. Qd1 {0-1 Nandhidhaa,P (2358)-Gines Esteo,P (2500) Sitges Sunway op 9th 2022 (8)}) 9... Bg6 10. Bf4 Qd7 11. Bxg6 hxg6 12. Nc2 Nc6 13. Ne3 e6 {Not much happening anymore} 14. O-O Be7 15. a4 O-O 16. Nc1 Ne4 17. Qd1 {Repels Nd2} b5 18. f3 Nd6 19. Nd3 Nc4 20. Ng4 (20. Nc2 $11) 20... b4 $1 $15 21. b3 N4a5 22. cxb4 Nxb4 23. Nxb4 Bxb4 24. Qd3 Rfc8 25. Rfc1 {Inhibits Rc3.} Qb7 26. Ne5 Bd6 27. Rxc8+ Rxc8 (27... Qxc8 28. Nxg6 Bb4 29. Rc1 $16) 28. Rb1 {[%cal Oe5g6]} Bb4 (28... Nc6 $17 {[%cal Oc6d4] Hoping for ...Nxd4!.} 29. Rc1 Bxe5 30. dxe5 Rb8) 29. Bd2 Nc6 {[%cal Oc6d4]} (29... Bxd2 $5 30. Qxd2 Nc4 $17 (30... Nxb3 31. Qd1 $16)) 30. Nxc6 ({White should play} 30. Rc1 $1 $11 Nxe5 31. Rxc8+ Qxc8 32. dxe5 Bxd2 33. Qxd2) 30... Rxc6 31. Rc1 {[#]} Bxd2 32. Rxc6 Be3+ 33. Qxe3 Qxc6 $11 {[%mdl 4096] Endgame KQ-KQ} 34. Qd2 f6 35. f4 Qd6 36. b4 Qc6 37. a5 Qc4 38. Kh2 Qf1 39. Kg3 Kf7 40. Qc3 g5 (40... Kg8 $11 {keeps the balance.}) 41. Qc7+ ({White has to play} 41. fxg5 $16 Kg6 42. gxf6 gxf6 43. Qc2+ Kf7 44. Qc7+ Kg6 45. Qc2+) 41... Kg6 {[%cal Oe6e5] The position is equal.} 42. fxg5 Qe1+ 43. Kh2 Qxb4 44. gxf6 gxf6 45. Qb6 Qd2 46. Qxa6 Qf4+ 47. Kh1 {[#]} Qc1+ 48. Kh2 Qf4+ 49. Kh1 Qc1+ 50. Kh2 {Black must now prevent Qd3+.} Qf4+ {Weighted Error Value: White=0.14 (very precise) /Black=0.16 (very precise)   Mistake:       	White=3     	Black=2      Inaccurate:     	White=3     	Black=5      OK:         	White=16    	Black=16     Best:        	White=3     	Black=1      Strong:       	---       	Black=1} 1/2-1/2

[Event "8th Montevideo Open 2025"]
[Site "Montevideo"]
[Date "2025.02.07"]
[Round "7.15"]
[White "Errazola, Mauricio"]
[Black "Bauza, Alejandro"]
[Result "1-0"]
[Annotator "NA RC"]
[ECO "B00"]
[WhiteElo "1891"]
[BlackElo "2116"]
[PlyCount "99"]
[EventDate "2025.02.01"]
[EventType "swiss"]
[EventCountry "URU"]
[SourceTitle "playchess.com"]
[Source "ChessBase"]
[SourceQuality "1"]
[TimeControl "5400+30"]

1. e4 {[%emt 0:00:07]} b6 {[%emt 0:00:34]} 2. d4 {[%emt 0:00:22]} Bb7 {[%emt 0:00:08]} 3. Nc3 {[%emt 0:01:38]} g6 {[%emt 0:00:32]} 4. Be3 {[%emt 0:01:06]} Bg7 {[%emt 0:00:13]} 5. Bc4 {[%emt 0:01:16]} e6 {[%emt 0:00:09]} 6. Nge2 {[%emt 0:00:39]} Ne7 {[%emt 0:00:19]} 7. O-O {[%emt 0:01:12]} a6 {[%emt 0:00:16]} 8. Qd2 {[%emt 0:01:58]} h6 {[%emt 0:00:06]} 9. d5 {[%emt 0:02:24]} Qc8 {[%emt 0:02:30]} 10. Rad1 {[%emt 0:05:13]} b5 {[%emt 0:06:29]} 11. Bb3 {[%emt 0:01:04]} exd5 {[%emt 0:04:21]} 12. Bd4 {[%emt 0:03:27]} Bxd4 {[%emt 0:03:57]} 13. Qxd4 {[%emt 0:01:10]} O-O {[%emt 0:00:08]} 14. Qf6 {[%emt 0:03:06]} Qd8 {[%emt 0:00:29]} 15. Nf4 {[%emt 0:01:30]} c5 {[%emt 0:04:35]} 16. Bxd5 {[%emt 0:07:21]} Nxd5 {[%emt 0:29:31]} 17. Nfxd5 {[%emt 0:07:01]} b4 {[%emt 0:04:12]} 18. Ne7+ {[%emt 0:05:42]} Kh7 {[%emt 0:00:02]} 19. Ncd5 {[%emt 0:00:48]} a5 {[%emt 0:05:33]} 20. Qe5 {[%emt 0:02:13]} Bxd5 {[%emt 0:00:45]} 21. Nxd5 {[%emt 0:04:24]} Ra6 {[%emt 0:00:29]} 22. Rd2 {[%emt 0:07:20]} Re6 {[%emt 0:00:29]} 23. Qf4 {[%emt 0:00:23]} f5 {[%emt 0:00:24]} 24. e5 {[%emt 0:02:09]} g5 {[%emt 0:01:37]} 25. Qg3 {[%emt 0:01:31]} Kg7 {[%emt 0:07:06]} 26. Nf4 {[%emt 0:03:02]} Rc6 {[%emt 0:02:18]} 27. Rfd1 {[%emt 0:00:38]} Qe8 {[%emt 0:01:07]} 28. h4 {[%emt 0:01:25]} Qe7 {[%emt 0:00:34]} 29. Nh5+ {[%emt 0:01:11]} Kh8 {[%emt 0:00:27]} 30. Nf6 {[%emt 0:02:37]} f4 {[%emt 0:00:50]} 31. Qd3 {[%emt 0:01:43]} Rf7 {[%emt 0:00:25]} 32. Qg6 {[%emt 0:00:23]} Rcxf6 {[%emt 0:01:10]} 33. exf6 {[%emt 0:00:06]} Rxf6 {[%emt 0:00:02]} 34. Qh5 {[%emt 0:01:45]} gxh4 {[%emt 0:00:37]} 35. Re2 {[%emt 0:00:16]} Qg7 {[%emt 0:00:13]} 36. Qe8+ {[%emt 0:00:35]} Rf8 {[%emt 0:02:06]} 37. Qe5 {[%emt 0:00:35]} f3 {[%emt 0:01:45]} 38. Qxg7+ {[%emt 0:00:16]} Kxg7 {[%emt 0:00:02]} 39. Re5 {[%emt 0:00:14]} fxg2 {[%emt 0:00:54]} 40. Rxc5 {[%emt 0:00:31]} h3 {[%emt 0:00:36]} 41. Rh5 {[%emt 0:01:54]} Rf3 {[%emt 0:01:08]} 42. Rd3 {[%emt 0:00:44]} Rxd3 {[%emt 0:22:22]} 43. cxd3 {[%emt 0:00:07]} Nc6 {[%emt 0:00:00]} 44. Rxh3 {[%emt 0:00:18]} Nd4 {[%emt 0:00:00]} 45. Kxg2 {[%emt 0:00:41]} Ne2 {[%emt 0:00:00]} 46. Re3 {[%emt 0:02:11]} Nf4+ {[%emt 0:00:00]} 47. Kf3 {[%emt 0:00:34]} Ne6 {[%emt 0:00:00]} 48. Re5 {[%emt 0:00:52]} Nd4+ {[%emt 0:00:00]} 49. Ke4 {[%emt 0:00:23]} Nc6 {[%emt 0:00:00]} 50. Rd5 {[%emt 0:00:10]} 1-0